[Event "POR-ch Women Rapid 2019"]
[Site "Portimao"]
[Date "2019.09.07"]
[Round "5.1"]
[White "Pipiras, Filipa Fortuna"]
[Black "Soares, Sara Joana De Moura "]
[Result "1/2-1/2"]
[ECO "D35"]
[WhiteElo "1965"]
[BlackElo "1533"]
[Annotator "NA"]
[PlyCount "76"]
[EventDate "2019.09.08"]
[EventType "swiss"]
[EventCountry "POR"]
[SourceTitle "playchess.com"]
[Source "ChessBase"]
[SourceQuality "1"]
[TimeControl "900+5"]

1. d4 {[%emt 0:00:13]} d5 {[%emt 0:00:00]} 2. c4 {[%emt 0:00:03]} e6 {[%emt 0:00:00]} 3. Nc3 {[%emt 0:00:03]} Nf6 {[%emt 0:00:00]} 4. cxd5 {[%emt 0:00:03]} exd5 {[%emt 0:00:01]} 5. Bg5 {[%emt 0:00:04]} Be7 {[%emt 0:00:20]} 6. e3 {[%emt 0:00:02]} c6 {[%emt 0:00:12]} 7. Bd3 {[%emt 0:00:04]} Nbd7 {[%emt 0:00:06]} 8. Nge2 {[%emt 0:00:08]} O-O {[%emt 0:00:03]} 9. O-O {[%emt 0:00:04]} Re8 {[%emt 0:00:10]} 10. f3 {[%emt 0:00:11]} Nf8 {[%emt 0:00:54]} 11. Bh4 {[%emt 0:00:25]} Ng6 {[%emt 0:00:34]} 12. Bf2 {[%emt 0:00:05]} Bd6 {[%emt 0:00:18]} 13. h3 {[%emt 0:00:15]} Qc7 {[%emt 0:00:32]} 14. e4 {[%emt 0:01:10]} Nh5 {[%emt 0:00:40]} 15. e5 {[%emt 0:00:15]} Bb4 {[%emt 0:00:02]} 16. Be3 {[%emt 0:00:21]} f5 {[%emt 0:01:30]} 17. f4 {[%emt 0:00:46]} Qe7 {[%emt 0:01:05]} 18. Bd2 {[%emt 0:01:03]} Qh4 {[%emt 0:00:51]} 19. Be1 {[%emt 0:00:16]} Qe7 {[%emt 0:00:06]} 20. a3 {[%emt 0:00:46]} Bxc3 {[%emt 0:00:16]} 21. bxc3 {[%emt 0:00:24]} Be6 {[%emt 0:00:33]} 22. a4 {[%emt 0:00:16]} b6 {[%emt 0:00:15]} 23. Qc2 {[%emt 0:00:16]} Qf7 {[%emt 0:00:26]} 24. Bd2 {[%emt 0:02:01]} c5 {[%emt 0:00:22]} 25. Qd1 {[%emt 0:00:25]} Ne7 {[%emt 0:01:06]} 26. Kh2 {[%emt 0:00:25]} g6 {[%emt 0:00:09]} 27. Be3 {[%emt 0:00:48]} c4 {[%emt 0:00:39]} 28. Bc2 {[%emt 0:00:09]} Ng7 {[%emt 0:00:02]} 29. Rb1 {[%emt 0:00:17]} Red8 {[%emt 0:00:39]} 30. Qc1 {[%emt 0:01:02]} Nc6 {[%emt 0:01:13]} 31. Qa3 {[%emt 0:00:29]} Qd7 {[%emt 0:00:43]} 32. Qb2 {[%emt 0:00:31]} Ne8 {[%emt 0:00:05]} 33. Qa2 {[%emt 0:01:52]} Na5 {[%emt 0:01:08]} 34. Rb2 {[%emt 0:00:44]} Nc6 {[%emt 0:00:40]} 35. Qb1 {[%emt 0:00:27]} Ng7 {[%emt 0:00:42]} 36. Rg1 {[%emt 0:00:27]} Ne7 {[%emt 0:01:07]} 37. Qa2 {[%emt 0:00:12]} Nc6 {[%emt 0:00:02]} 38. Qb1 {[%emt 0:00:08]} Rab8 {[%emt 0:00:07]} 1/2-1/2

[Event "POR-ch Women Rapid 2019"]
[Site "Portimao"]
[Date "2019.09.07"]
[Round "5.2"]
[White "Silva, Mariana Sofia T."]
[Black "Monteiro, Sara Cristina da Sil"]
[Result "1-0"]
[ECO "B00"]
[WhiteElo "1882"]
[BlackElo "1728"]
[Annotator "NA"]
[PlyCount "55"]
[EventDate "2019.09.08"]
[EventType "swiss"]
[EventCountry "POR"]
[SourceTitle "playchess.com"]
[Source "ChessBase"]
[SourceQuality "1"]
[TimeControl "900+5"]

1. e4 {[%emt 0:00:00]} b6 {[%emt 0:00:01]} 2. d4 {[%emt 0:00:00]} c5 {[%emt 0:00:04]} 3. Nf3 {[%emt 0:00:15]} Bb7 {[%emt 0:00:39]} 4. Nc3 {[%emt 0:00:22]} cxd4 {[%emt 0:00:25]} 5. Nxd4 {[%emt 0:00:05]} Nc6 {[%emt 0:00:03]} 6. Be3 {[%emt 0:00:17]} Qc7 {[%emt 0:02:10]} 7. Nd5 {[%emt 0:00:53]} Qe5 {[%emt 0:02:50]} 8. Nb5 {[%emt 0:02:00]} Kd8 {[%emt 0:01:14]} 9. Nbc3 {[%emt 0:02:41]} Nf6 {[%emt 0:01:47]} 10. Bf4 {[%emt 0:00:36]} Qh5 {[%emt 0:00:45]} 11. Be2 {[%emt 0:00:56]} Qg6 {[%emt 0:00:06]} 12. Bf3 {[%emt 0:01:36]} e6 {[%emt 0:02:35]} 13. Nc7 {[%emt 0:00:42]} Rc8 {[%emt 0:00:17]} 14. N7b5 {[%emt 0:00:03]} e5 {[%emt 0:01:02]} 15. Bg3 {[%emt 0:00:21]} a6 {[%emt 0:01:34]} 16. Nd6 {[%emt 0:00:08]} Bxd6 {[%emt 0:00:05]} 17. Qxd6 {[%emt 0:00:02]} Ne8 {[%emt 0:00:10]} 18. Qd2 {[%emt 0:00:37]} f6 {[%emt 0:00:14]} 19. Rd1 {[%emt 0:01:17]} Nd4 {[%emt 0:00:02]} 20. O-O {[%emt 0:00:26]} Nxf3+ {[%emt 0:00:09]} 21. gxf3 {[%emt 0:00:02]} Qf7 {[%emt 0:00:24]} 22. Qe3 {[%emt 0:00:35]} Rc6 {[%emt 0:00:08]} 23. Nd5 {[%emt 0:00:10]} b5 {[%emt 0:00:02]} 24. Qa7 {[%emt 0:00:31]} Bc8 {[%emt 0:00:01]} 25. Nb4 {[%emt 0:01:01]} Rc7 {[%emt 0:00:03]} 26. Qb6 {[%emt 0:00:04]} Qc4 {[%emt 0:00:07]} 27. Nd5 {[%emt 0:00:38]} Qc6 {[%emt 0:00:09]} 28. Qa5 1-0

[Event "POR-ch Women Rapid 2019"]
[Site "Portimao"]
[Date "2019.09.07"]
[Round "5.3"]
[White "Avelino, Camila Biscaya"]
[Black "Jorge, Rita Maria Osorio"]
[Result "0-1"]
[ECO "C78"]
[WhiteElo "1722"]
[BlackElo "1957"]
[Annotator "NA"]
[PlyCount "66"]
[EventDate "2019.09.08"]
[EventType "swiss"]
[EventCountry "POR"]
[SourceTitle "playchess.com"]
[Source "ChessBase"]
[SourceQuality "1"]
[TimeControl "900+5"]

1. e4 {[%emt 0:00:00]} e5 {[%emt 0:00:00]} 2. Nf3 {[%emt 0:00:00]} Nc6 {[%emt 0:00:00]} 3. Bb5 {[%emt 0:00:00]} a6 {[%emt 0:00:00]} 4. Ba4 {[%emt 0:00:02]} Bc5 {[%emt 0:00:01]} 5. O-O {[%emt 0:00:02]} Nf6 {[%emt 0:00:08]} 6. d3 {[%emt 0:00:04]} b5 {[%emt 0:00:03]} 7. Bb3 {[%emt 0:00:02]} O-O {[%emt 0:00:03]} 8. h3 {[%emt 0:00:10]} d6 {[%emt 0:00:05]} 9. c3 {[%emt 0:00:01]} Ne7 {[%emt 0:00:15]} 10. Re1 {[%emt 0:00:08]} Bb6 {[%emt 0:00:21]} 11. Nbd2 {[%emt 0:00:05]} c5 {[%emt 0:00:04]} 12. Nf1 {[%emt 0:00:03]} Bd7 {[%emt 0:00:14]} 13. d4 {[%emt 0:01:32]} exd4 {[%emt 0:00:36]} 14. cxd4 {[%emt 0:00:02]} c4 {[%emt 0:00:15]} 15. Bc2 {[%emt 0:00:01]} d5 {[%emt 0:01:09]} 16. e5 {[%emt 0:04:38]} Ne4 {[%emt 0:01:18]} 17. Bxe4 {[%emt 0:02:14]} dxe4 {[%emt 0:00:01]} 18. Rxe4 {[%emt 0:00:01]} Bc6 {[%emt 0:00:02]} 19. Re1 {[%emt 0:00:02]} Bxf3 {[%emt 0:00:36]} 20. Qxf3 {[%emt 0:00:02]} Bxd4 {[%emt 0:00:25]} 21. Rb1 {[%emt 0:02:23]} Ng6 {[%emt 0:00:27]} 22. Bf4 {[%emt 0:01:49]} Qb6 {[%emt 0:00:52]} 23. Bg3 {[%emt 0:01:09]} Rfe8 {[%emt 0:00:16]} 24. Qf5 {[%emt 0:00:24]} Qe6 {[%emt 0:00:44]} 25. Qxe6 {[%emt 0:01:22]} Rxe6 {[%emt 0:00:03]} 26. Re4 {[%emt 0:00:03]} Bxe5 {[%emt 0:00:19]} 27. Bxe5 {[%emt 0:00:24]} Rxe5 {[%emt 0:00:06]} 28. Rxe5 {[%emt 0:00:03]} Nxe5 {[%emt 0:00:02]} 29. Rd1 {[%emt 0:00:01]} g6 {[%emt 0:00:25]} 30. Ne3 {[%emt 0:00:09]} Rc8 {[%emt 0:00:30]} 31. Rd6 {[%emt 0:00:07]} Rc6 {[%emt 0:00:34]} 32. Rxc6 {[%emt 0:00:26]} Nxc6 {[%emt 0:00:02]} 33. Nd5 {[%emt 0:00:01]} a5 {[%emt 0:00:36]} 0-1

[Event "POR-ch Women Rapid 2019"]
[Site "Portimao"]
[Date "2019.09.07"]
[Round "5.5"]
[White "Leite, Marta Sofia Carvalho"]
[Black "Goncalves, Ana Luisa"]
[Result "1-0"]
[ECO "C78"]
[WhiteElo "1722"]
[BlackElo "1250"]
[Annotator "NA"]
[PlyCount "47"]
[EventDate "2019.09.08"]
[EventType "swiss"]
[EventCountry "POR"]
[SourceTitle "playchess.com"]
[Source "ChessBase"]
[SourceQuality "1"]
[TimeControl "900+5"]

1. e4 {[%emt 0:00:00]} e5 {[%emt 0:00:00]} 2. Nf3 {[%emt 0:00:01]} Nc6 {[%emt 0:00:00]} 3. Bb5 {[%emt 0:00:03]} a6 {[%emt 0:00:01]} 4. Ba4 {[%emt 0:00:02]} Bc5 {[%emt 0:00:06]} 5. O-O {[%emt 0:00:06]} Nf6 {[%emt 0:00:06]} 6. d3 {[%emt 0:00:03]} h6 {[%emt 0:00:13]} 7. Bxc6 {[%emt 0:00:15]} dxc6 {[%emt 0:00:16]} 8. Nxe5 {[%emt 0:00:03]} O-O {[%emt 0:00:43]} 9. c3 {[%emt 0:01:15]} Bd6 {[%emt 0:00:19]} 10. Nf3 {[%emt 0:00:04]} Nd7 {[%emt 0:00:55]} 11. d4 {[%emt 0:01:10]} c5 {[%emt 0:00:39]} 12. Be3 {[%emt 0:00:53]} Re8 {[%emt 0:01:30]} 13. Nbd2 {[%emt 0:00:28]} f6 {[%emt 0:01:27]} 14. Nh4 {[%emt 0:01:34]} b6 {[%emt 0:00:58]} 15. Nf5 {[%emt 0:02:43]} Nf8 {[%emt 0:00:32]} 16. Ng3 {[%emt 0:02:04]} Bxg3 {[%emt 0:02:39]} 17. fxg3 {[%emt 0:00:14]} Bb7 {[%emt 0:00:30]} 18. Qg4 {[%emt 0:00:25]} Bc8 {[%emt 0:01:36]} 19. Qf3 {[%emt 0:00:17]} Nh7 {[%emt 0:01:12]} 20. e5 {[%emt 0:00:11]} Rf8 {[%emt 0:01:09]} 21. Qxa8 {[%emt 0:00:04]} cxd4 {[%emt 0:00:42]} 22. cxd4 {[%emt 0:00:08]} fxe5 {[%emt 0:00:29]} 23. dxe5 {[%emt 0:00:27]} Re8 {[%emt 0:00:24]} 24. Nf3 {[%emt 0:00:20]} 1-0

[Event "POR-ch Women Rapid 2019"]
[Site "Portimao"]
[Date "2019.09.07"]
[Round "6.1"]
[White "Silva, Mariana Sofia T."]
[Black "Pipiras, Filipa Fortuna"]
[Result "1-0"]
[ECO "C45"]
[WhiteElo "1882"]
[BlackElo "1965"]
[Annotator "NA"]
[PlyCount "59"]
[EventDate "2019.09.08"]
[EventType "swiss"]
[EventCountry "POR"]
[SourceTitle "playchess.com"]
[Source "ChessBase"]
[SourceQuality "1"]
[TimeControl "900+5"]

1. e4 {[%emt 0:00:00]} e5 {[%emt 0:00:12]} 2. Nf3 {[%emt 0:00:00]} Nc6 {[%emt 0:00:02]} 3. d4 {[%emt 0:00:11]} exd4 {[%emt 0:00:08]} 4. Nxd4 {[%emt 0:00:01]} Bc5 {[%emt 0:00:06]} 5. Be3 {[%emt 0:00:14]} Qf6 {[%emt 0:00:07]} 6. c3 {[%emt 0:00:02]} Nge7 {[%emt 0:00:08]} 7. Bc4 {[%emt 0:00:02]} Ne5 {[%emt 0:00:04]} 8. Be2 {[%emt 0:00:02]} O-O {[%emt 0:00:16]} 9. O-O {[%emt 0:00:12]} Qg6 {[%emt 0:00:07]} 10. Nd2 {[%emt 0:00:29]} d5 {[%emt 0:00:36]} 11. f3 {[%emt 0:00:26]} Bb6 {[%emt 0:01:03]} 12. Kh1 {[%emt 0:00:30]} dxe4 {[%emt 0:01:00]} 13. Nxe4 {[%emt 0:00:56]} Nd5 {[%emt 0:00:29]} 14. Bg1 {[%emt 0:00:28]} Nf4 {[%emt 0:00:54]} 15. Rf2 {[%emt 0:00:54]} c5 {[%emt 0:00:31]} 16. Nc2 {[%emt 0:00:14]} c4 {[%emt 0:00:33]} 17. Nd4 {[%emt 0:00:05]} Rd8 {[%emt 0:01:04]} 18. Qd2 {[%emt 0:00:44]} Nxe2 {[%emt 0:00:53]} 19. Rxe2 {[%emt 0:00:06]} Bf5 {[%emt 0:00:32]} 20. Ng3 {[%emt 0:00:37]} Bxd4 {[%emt 0:00:16]} 21. Bxd4 {[%emt 0:00:23]} Nc6 {[%emt 0:00:13]} 22. Qf4 {[%emt 0:01:14]} Bd3 {[%emt 0:00:19]} 23. Re3 {[%emt 0:00:22]} Nxd4 {[%emt 0:01:22]} 24. cxd4 {[%emt 0:00:01]} Qd6 {[%emt 0:00:09]} 25. Qg4 {[%emt 0:02:02]} Qxd4 {[%emt 0:00:24]} 26. Re8+ {[%emt 0:00:03]} Rxe8 {[%emt 0:00:09]} 27. Qxd4 {[%emt 0:00:02]} b5 {[%emt 0:01:12]} 28. Nh5 {[%emt 0:00:39]} f6 {[%emt 0:00:25]} 29. Qd7 {[%emt 0:01:14]} Kh8 {[%emt 0:00:44]} 30. Qxg7# 1-0

[Event "POR-ch Women Rapid 2019"]
[Site "Portimao"]
[Date "2019.09.07"]
[Round "6.2"]
[White "Silva, Ana Ines Teixeira Da"]
[Black "Jorge, Rita Maria Osorio"]
[Result "1-0"]
[ECO "C62"]
[WhiteElo "1738"]
[BlackElo "1957"]
[Annotator "NA"]
[PlyCount "60"]
[EventDate "2019.09.08"]
[EventType "swiss"]
[EventCountry "POR"]
[SourceTitle "playchess.com"]
[Source "ChessBase"]
[SourceQuality "1"]
[TimeControl "900+5"]

1. e4 {[%emt 0:00:00]} e5 {[%emt 0:00:05]} 2. Nf3 {[%emt 0:00:01]} Nc6 {[%emt 0:00:02]} 3. Bb5 {[%emt 0:00:38]} d6 {[%emt 0:00:23]} 4. d4 {[%emt 0:00:43]} exd4 {[%emt 0:00:35]} 5. Bxc6+ {[%emt 0:00:29]} bxc6 {[%emt 0:00:05]} 6. Nxd4 {[%emt 0:00:12]} Bd7 {[%emt 0:00:04]} 7. O-O {[%emt 0:00:12]} g6 {[%emt 0:00:09]} 8. c4 {[%emt 0:00:31]} Bg7 {[%emt 0:00:04]} 9. Nc3 {[%emt 0:00:03]} Nf6 {[%emt 0:00:38]} 10. f3 {[%emt 0:00:26]} O-O {[%emt 0:00:05]} 11. Kh1 {[%emt 0:00:05]} Qc8 {[%emt 0:01:41]} 12. Be3 {[%emt 0:00:31]} a5 {[%emt 0:01:57]} 13. Qd2 {[%emt 0:00:15]} Qa6 {[%emt 0:00:25]} 14. b3 {[%emt 0:00:40]} Rfe8 {[%emt 0:00:58]} 15. Bh6 {[%emt 0:00:34]} Qb6 {[%emt 0:02:16]} 16. Bxg7 {[%emt 0:00:31]} Kxg7 {[%emt 0:00:00]} 17. Rae1 {[%emt 0:00:46]} Rad8 {[%emt 0:00:58]} 18. f4 {[%emt 0:01:02]} Qc5 {[%emt 0:02:33]} 19. f5 {[%emt 0:01:08]} Bc8 {[%emt 0:00:48]} 20. Rf3 {[%emt 0:00:43]} d5 {[%emt 0:01:06]} 21. cxd5 {[%emt 0:00:30]} cxd5 {[%emt 0:00:07]} 22. e5 {[%emt 0:00:27]} Ng4 {[%emt 0:00:23]} 23. f6+ {[%emt 0:00:26]} Kg8 {[%emt 0:00:02]} 24. Qf4 {[%emt 0:01:29]} Rd6 {[%emt 0:01:14]} 25. e6 {[%emt 0:02:06]} Rdxe6 {[%emt 0:00:14]} 26. Nxe6 {[%emt 0:00:13]} Rxe6 {[%emt 0:00:05]} 27. Rxe6 {[%emt 0:00:09]} Bxe6 {[%emt 0:00:09]} 28. h3 {[%emt 0:00:16]} d4 {[%emt 0:00:04]} 29. Ne4 {[%emt 0:00:15]} Qh5 {[%emt 0:00:07]} 30. Qxc7 {[%emt 0:00:20]} Nxf6 1-0

[Event "POR-ch Women Rapid 2019"]
[Site "Portimao"]
[Date "2019.09.07"]
[Round "6.3"]
[White "Soares, Sara Joana De Moura "]
[Black "Duque, Raquel Dos Santos"]
[Result "0-1"]
[ECO "C53"]
[WhiteElo "1533"]
[BlackElo "1415"]
[Annotator "NA"]
[PlyCount "205"]
[EventDate "2019.09.08"]
[EventType "swiss"]
[EventCountry "POR"]
[SourceTitle "playchess.com"]
[Source "ChessBase"]
[SourceQuality "1"]
[TimeControl "900+5"]

1. e4 {[%emt 0:00:00]} e5 {[%emt 0:00:00]} 2. Nf3 {[%emt 0:00:00]} Nc6 {[%emt 0:00:00]} 3. Bc4 {[%emt 0:00:00]} Bc5 {[%emt 0:00:00]} 4. c3 {[%emt 0:00:02]} d6 {[%emt 0:00:02]} 5. d4 {[%emt 0:00:03]} exd4 {[%emt 0:00:02]} 6. cxd4 {[%emt 0:00:02]} Bb4+ {[%emt 0:00:06]} 7. Bd2 {[%emt 0:00:10]} Bxd2+ {[%emt 0:00:21]} 8. Nbxd2 {[%emt 0:00:01]} Nge7 {[%emt 0:00:14]} 9. O-O {[%emt 0:00:20]} Bg4 {[%emt 0:00:03]} 10. Bxf7+ {[%emt 0:00:11]} Kf8 {[%emt 0:00:28]} 11. Qb3 {[%emt 0:01:02]} Na5 {[%emt 0:01:06]} 12. Qb4 {[%emt 0:00:44]} Nec6 {[%emt 0:00:08]} 13. Qc3 {[%emt 0:00:12]} Kxf7 {[%emt 0:00:45]} 14. d5 {[%emt 0:00:01]} Re8 {[%emt 0:00:24]} 15. dxc6 {[%emt 0:00:53]} Nxc6 {[%emt 0:00:18]} 16. Qb3+ {[%emt 0:00:03]} Kf8 {[%emt 0:00:31]} 17. Qxb7 {[%emt 0:00:18]} Ne5 {[%emt 0:00:27]} 18. Nxe5 {[%emt 0:01:12]} Rxe5 {[%emt 0:00:09]} 19. Nc4 {[%emt 0:00:42]} Rg5 {[%emt 0:00:27]} 20. f4 {[%emt 0:00:21]} Rg6 {[%emt 0:00:13]} 21. Ne3 {[%emt 0:01:53]} Rb8 {[%emt 0:00:55]} 22. Qxa7 {[%emt 0:01:13]} Rxb2 {[%emt 0:00:03]} 23. Nxg4 {[%emt 0:00:11]} Rxg4 {[%emt 0:00:06]} 24. g3 {[%emt 0:00:01]} Qh4 {[%emt 0:01:48]} 25. Rf2 {[%emt 0:01:14]} Rxg3+ {[%emt 0:02:19]} 26. hxg3 {[%emt 0:00:39]} Qxg3+ {[%emt 0:00:02]} 27. Kf1 {[%emt 0:00:00]} Qd3+ {[%emt 0:00:02]} 28. Kg1 {[%emt 0:00:54]} Qg3+ {[%emt 0:00:07]} 29. Kf1 {[%emt 0:00:39]} Qh3+ {[%emt 0:00:11]} 30. Ke1 {[%emt 0:00:04]} Qc3+ {[%emt 0:00:02]} 31. Kf1 {[%emt 0:00:29]} Rxf2+ {[%emt 0:00:18]} 32. Kxf2 {[%emt 0:00:12]} Qb2+ {[%emt 0:00:16]} 33. Ke3 {[%emt 0:00:41]} Qc3+ {[%emt 0:00:09]} 34. Kf2 {[%emt 0:00:04]} Qb2+ {[%emt 0:00:01]} 35. Kf3 {[%emt 0:00:03]} Qxa1 {[%emt 0:00:31]} 36. Qb8+ {[%emt 0:00:01]} Ke7 {[%emt 0:00:01]} 37. Qxc7+ {[%emt 0:00:01]} Ke6 {[%emt 0:00:01]} 38. f5+ {[%emt 0:00:05]} Kf6 {[%emt 0:00:43]} 39. Qxd6+ {[%emt 0:00:28]} Kg5 {[%emt 0:00:02]} 40. Qe7+ {[%emt 0:01:12]} Kh5 {[%emt 0:00:46]} 41. Qf7+ {[%emt 0:00:02]} Kh6 {[%emt 0:00:13]} 42. Qe6+ {[%emt 0:01:23]} Kh5 {[%emt 0:00:13]} 43. Qc4 {[%emt 0:00:08]} Qh1+ {[%emt 0:00:09]} 44. Ke3 {[%emt 0:00:14]} Qg1+ {[%emt 0:00:05]} 45. Kd3 {[%emt 0:00:06]} Qd1+ {[%emt 0:00:11]} 46. Ke3 {[%emt 0:00:06]} Qg1+ {[%emt 0:00:02]} 47. Kf4 {[%emt 0:00:03]} Qh2+ {[%emt 0:00:06]} 48. Ke3 {[%emt 0:00:05]} Qg1+ {[%emt 0:00:01]} 49. Kd3 {[%emt 0:00:01]} Qd1+ {[%emt 0:00:03]} 50. Kc3 {[%emt 0:00:04]} Qe1+ {[%emt 0:00:28]} 51. Kd4 {[%emt 0:00:18]} Qd2+ {[%emt 0:00:04]} 52. Ke5 {[%emt 0:00:02]} Qa5+ {[%emt 0:00:05]} 53. Qd5 {[%emt 0:00:07]} Qc3+ {[%emt 0:00:07]} 54. Kd6 {[%emt 0:00:14]} Qb4+ {[%emt 0:00:05]} 55. Ke6 {[%emt 0:00:12]} Qb6+ {[%emt 0:00:21]} 56. Ke7 {[%emt 0:00:02]} Qc7+ {[%emt 0:00:10]} 57. Kf8 {[%emt 0:00:02]} Kh6 {[%emt 0:00:38]} 58. Qe6+ {[%emt 0:00:07]} g6 {[%emt 0:00:15]} 59. Qe7 {[%emt 0:00:11]} Qc8+ {[%emt 0:00:08]} 60. Kf7 {[%emt 0:00:01]} Qc4+ {[%emt 0:00:01]} 61. Qe6 {[%emt 0:00:02]} Qc7+ {[%emt 0:00:02]} 62. Kf6 {[%emt 0:00:01]} Qc3+ {[%emt 0:00:01]} 63. e5 {[%emt 0:00:01]} Qc7 {[%emt 0:00:11]} 64. Qe7 {[%emt 0:00:07]} Qb6+ {[%emt 0:00:02]} 65. Qd6 Qa7 {[%emt 0:00:25]} 66. Qd2+ {[%emt 0:00:08]} Kh5 {[%emt 0:00:03]} 67. Qe2+ {[%emt 0:00:05]} Kh4 {[%emt 0:00:13]} 68. Qe4+ {[%emt 0:00:02]} Kh5 {[%emt 0:00:03]} 69. Qf3+ {[%emt 0:00:02]} Kh4 {[%emt 0:00:05]} 70. Qd3 {[%emt 0:00:17]} Qb6+ {[%emt 0:00:07]} 71. Qd6 {[%emt 0:00:01]} Qa7 {[%emt 0:00:05]} 72. a3 {[%emt 0:00:02]} Kh5 {[%emt 0:00:06]} 73. Qd1+ {[%emt 0:00:03]} Kh4 {[%emt 0:00:01]} 74. Qe1+ {[%emt 0:00:00]} Kg4 {[%emt 0:00:02]} 75. Qe2+ {[%emt 0:00:00]} Kh4 {[%emt 0:00:03]} 76. Qe1+ {[%emt 0:00:00]} Kg4 {[%emt 0:00:02]} 77. Qd1+ {[%emt 0:00:00]} Kh4 {[%emt 0:00:02]} 78. fxg6 {[%emt 0:00:00]} hxg6 {[%emt 0:00:17]} 79. Qe1+ {[%emt 0:00:00]} Kh5 {[%emt 0:00:05]} 80. Qe2+ {[%emt 0:00:00]} Kh4 {[%emt 0:00:03]} 81. Qh2+ {[%emt 0:00:00]} Kg4 {[%emt 0:00:04]} 82. Qg2+ {[%emt 0:00:00]} Kh4 {[%emt 0:00:02]} 83. Qe4+ {[%emt 0:00:00]} Kh5 {[%emt 0:00:06]} 84. Qxg6+ {[%emt 0:00:00]} Kh4 {[%emt 0:00:01]} 85. Qe4+ {[%emt 0:00:00]} Kg3 {[%emt 0:00:04]} 86. Qd3+ {[%emt 0:00:00]} Kg4 {[%emt 0:00:08]} 87. Qd6 {[%emt 0:00:00]} Qf2+ {[%emt 0:00:09]} 88. Ke6 {[%emt 0:00:00]} Qa2+ {[%emt 0:00:02]} 89. Ke7 {[%emt 0:00:00]} Kf4 {[%emt 0:00:14]} 90. e6+ {[%emt 0:00:00]} Kf5 {[%emt 0:00:15]} 91. Qc5+ {[%emt 0:00:00]} Kg6 {[%emt 0:00:07]} 92. Qd6 {[%emt 0:00:08]} Qb2 {[%emt 0:00:11]} 93. Qd3+ {[%emt 0:00:27]} Kg5 {[%emt 0:00:05]} 94. Qd5+ {[%emt 0:00:01]} Kg6 {[%emt 0:00:02]} 95. a4 {[%emt 0:00:01]} Qb4+ {[%emt 0:00:04]} 96. Qd6 {[%emt 0:00:26]} Qxa4 {[%emt 0:00:01]} 97. Qd7 {[%emt 0:00:10]} Qh4+ {[%emt 0:00:17]} 98. Kd6 {[%emt 0:00:18]} Qd4+ {[%emt 0:00:07]} 99. Kc7 {[%emt 0:00:01]} Qc5+ {[%emt 0:00:12]} 100. Kd8 {[%emt 0:00:08]} Qg5+ {[%emt 0:00:12]} 101. Ke8 {[%emt 0:00:07]} Qc5 {[%emt 0:00:23]} 102. Qf7+ Kg5 {[%emt 0:00:14]} 103. Qe7+ {[%emt 0:00:04]} 0-1

[Event "POR-ch Women Rapid 2019"]
[Site "Portimao"]
[Date "2019.09.07"]
[Round "6.4"]
[White "Leite, Marta Sofia Carvalho"]
[Black "Avelino, Camila Biscaya"]
[Result "1-0"]
[ECO "C77"]
[WhiteElo "1722"]
[BlackElo "1722"]
[Annotator "NA"]
[PlyCount "31"]
[EventDate "2019.09.08"]
[EventType "swiss"]
[EventCountry "POR"]
[SourceTitle "playchess.com"]
[Source "ChessBase"]
[SourceQuality "1"]
[TimeControl "900+5"]

1. e4 {[%emt 0:00:00]} e5 {[%emt 0:00:00]} 2. Nf3 {[%emt 0:00:00]} Nc6 {[%emt 0:00:00]} 3. Bb5 {[%emt 0:00:02]} a6 {[%emt 0:00:00]} 4. Ba4 {[%emt 0:00:02]} Nf6 {[%emt 0:00:00]} 5. d3 {[%emt 0:00:02]} d6 {[%emt 0:00:05]} 6. h3 {[%emt 0:00:08]} b5 7. Bb3 {[%emt 0:00:03]} Be7 {[%emt 0:00:06]} 8. O-O {[%emt 0:00:03]} O-O {[%emt 0:00:02]} 9. Nc3 {[%emt 0:00:05]} Na5 {[%emt 0:00:04]} 10. Be3 {[%emt 0:00:20]} Re8 {[%emt 0:00:14]} 11. Qd2 {[%emt 0:00:51]} Bf8 {[%emt 0:00:21]} 12. Bg5 {[%emt 0:01:49]} Nxb3 {[%emt 0:00:23]} 13. axb3 {[%emt 0:00:02]} h6 {[%emt 0:00:02]} 14. Bxf6 {[%emt 0:00:31]} Qxf6 {[%emt 0:00:02]} 15. Nxb5 {[%emt 0:00:07]} Ra7 {[%emt 0:02:07]} 16. Nxa7 {[%emt 0:00:06]} 1-0